[Event "GER-ch Women Open 2019"]
[Site "Bodenmais"]
[Date "2019.07.29"]
[Round "3.4"]
[White "Peglau, Adelheid"]
[Black "Peglau, Dora"]
[Result "0-1"]
[ECO "B56"]
[WhiteElo "1187"]
[BlackElo "1300"]
[Annotator "NA"]
[PlyCount "70"]
[EventDate "2019.07.27"]
[EventType "swiss"]
[EventCountry "GER"]
[SourceTitle "playchess.com"]
[Source "ChessBase"]
[SourceQuality "1"]
[TimeControl "40/5400+30:900+30"]

1. e4 {[%emt 0:00:00]} c5 {[%emt 0:00:10]} 2. Nf3 {[%emt 0:00:00]} Nc6 {[%emt 0:00:06]} 3. d4 {[%emt 0:00:22]} cxd4 {[%emt 0:00:05]} 4. Nxd4 {[%emt 0:00:42]} Nf6 {[%emt 0:00:02]} 5. Nc3 {[%emt 0:04:15]} d6 {[%emt 0:01:27]} 6. Bb5 {[%emt 0:02:56]} Bd7 {[%emt 0:00:39]} 7. Bg5 {[%emt 0:02:36]} Qb6 {[%emt 0:08:32]} 8. Bxc6 {[%emt 0:19:59]} Bxc6 {[%emt 0:01:57]} 9. Nxc6 {[%emt 0:15:38]} bxc6 {[%emt 0:00:44]} 10. Rb1 {[%emt 0:07:33]} Qa6 {[%emt 0:06:39]} 11. f3 {[%emt 0:04:16]} Rb8 {[%emt 0:04:18]} 12. Qd2 {[%emt 0:05:00]} Nd7 {[%emt 0:01:31]} 13. Qe2 {[%emt 0:10:49]} Qxe2+ {[%emt 0:01:14]} 14. Nxe2 {[%emt 0:02:41]} g6 {[%emt 0:00:17]} 15. O-O {[%emt 0:00:58]} Bg7 {[%emt 0:00:15]} 16. b3 {[%emt 0:04:32]} h6 {[%emt 0:01:39]} 17. Be3 {[%emt 0:02:38]} O-O {[%emt 0:01:59]} 18. Rfd1 {[%emt 0:06:11]} Rb7 {[%emt 0:01:57]} 19. c4 {[%emt 0:01:05]} c5 {[%emt 0:00:56]} 20. Bd2 {[%emt 0:03:19]} Rfb8 {[%emt 0:02:02]} 21. Bc3 {[%emt 0:00:13]} Ne5 {[%emt 0:01:36]} 22. f4 {[%emt 0:02:03]} Nxc4 {[%emt 0:00:37]} 23. Bxg7 Kxg7 {[%emt 0:00:12]} 24. Nc3 {[%emt 0:00:47]} Nb6 {[%emt 0:00:32]} 25. Nd5 {[%emt 0:01:10]} Nxd5 {[%emt 0:00:16]} 26. Rxd5 {[%emt 0:00:04]} c4 {[%emt 0:00:16]} 27. e5 cxb3 {[%emt 0:00:42]} 28. axb3 {[%emt 0:01:34]} dxe5 {[%emt 0:00:14]} 29. Rxe5 {[%emt 0:00:28]} e6 {[%emt 0:00:43]} 30. Ra5 {[%emt 0:01:05]} Kf6 {[%emt 0:01:54]} 31. h3 {[%emt 0:01:35]} Rb4 {[%emt 0:01:00]} 32. g3 {[%emt 0:00:47]} Rxb3 {[%emt 0:00:08]} 33. Rxb3 {[%emt 0:00:06]} Rxb3 {[%emt 0:00:06]} 34. Kg2 {[%emt 0:00:31]} Rb7 {[%emt 0:00:13]} 35. Kf3 {[%emt 0:00:42]} g5 {[%emt 0:00:18]} 0-1

[Event "GER-ch Women Open 2019"]
[Site "Bodenmais"]
[Date "2019.07.29"]
[Round "3.5"]
[White "Navarro Ortega-Villaizan, Lucia"]
[Black "Wolff, Beate"]
[Result "1-0"]
[ECO "B13"]
[WhiteElo "1113"]
[BlackElo "1238"]
[Annotator "NA"]
[PlyCount "111"]
[EventDate "2019.07.27"]
[EventType "swiss"]
[EventCountry "GER"]
[SourceTitle "playchess.com"]
[Source "ChessBase"]
[SourceQuality "1"]
[TimeControl "40/5400+30:900+30"]

1. e4 {[%emt 0:00:00]} c6 {[%emt 0:00:00]} 2. d4 {[%emt 0:00:00]} d5 {[%emt 0:00:00]} 3. exd5 {[%emt 0:00:15]} cxd5 {[%emt 0:00:00]} 4. Nf3 {[%emt 0:00:22]} Nc6 {[%emt 0:00:51]} 5. Bf4 {[%emt 0:00:43]} Nf6 {[%emt 0:01:57]} 6. Nbd2 {[%emt 0:01:21]} e6 {[%emt 0:02:32]} 7. Bd3 {[%emt 0:00:18]} Be7 {[%emt 0:00:51]} 8. O-O {[%emt 0:01:05]} O-O {[%emt 0:00:05]} 9. Re1 {[%emt 0:00:09]} Qb6 {[%emt 0:05:57]} 10. Nb3 {[%emt 0:02:14]} Bd7 {[%emt 0:06:53]} 11. Be5 {[%emt 0:01:12]} Rac8 {[%emt 0:08:21]} 12. Rc1 {[%emt 0:02:30]} Nb4 {[%emt 0:02:10]} 13. c3 {[%emt 0:08:20]} Nxd3 {[%emt 0:04:19]} 14. Qxd3 {[%emt 0:00:41]} Bb5 {[%emt 0:00:45]} 15. Qb1 {[%emt 0:01:33]} Ne4 {[%emt 0:10:38]} 16. Nbd2 {[%emt 0:03:30]} Nxd2 {[%emt 0:03:23]} 17. Nxd2 {[%emt 0:03:46]} h6 {[%emt 0:13:03]} 18. Re3 {[%emt 0:02:48]} f5 {[%emt 0:04:46]} 19. Rg3 {[%emt 0:01:30]} Bf6 {[%emt 0:04:41]} 20. Bf4 {[%emt 0:02:57]} g5 {[%emt 0:01:55]} 21. h4 {[%emt 0:04:28]} g4 {[%emt 0:04:44]} 22. Nf3 {[%emt 0:07:29]} h5 {[%emt 0:04:20]} 23. Bh6 {[%emt 0:06:07]} Bg7 {[%emt 0:02:34]} 24. Bxg7 {[%emt 0:02:22]} Kxg7 {[%emt 0:00:38]} 25. Ne5 {[%emt 0:01:42]} Kh6 {[%emt 0:04:07]} 26. Qc2 {[%emt 0:05:03]} Qd8 {[%emt 0:03:39]} 27. Qd2+ {[%emt 0:00:58]} f4 {[%emt 0:00:55]} 28. c4 {[%emt 0:06:49]} dxc4 {[%emt 0:01:38]} 29. Rgc3 {[%emt 0:01:14]} Qxh4 {[%emt 0:02:22]} 30. g3 {[%emt 0:01:07]} Qf6 {[%emt 0:01:04]} 31. Kg2 {[%emt 0:01:23]} Bc6+ {[%emt 0:00:31]} 32. Kg1 {[%emt 0:02:08]} b5 {[%emt 0:01:16]} 33. Qc2 {[%emt 0:00:21]} Be4 {[%emt 0:00:28]} 34. Qxe4 {[%emt 0:01:03]} fxg3 {[%emt 0:02:21]} 35. f4 {[%emt 0:03:38]} Qf5 {[%emt 0:01:45]} 36. Qxf5 {[%emt 0:02:29]} exf5 {[%emt 0:00:29]} 37. Rxg3 {[%emt 0:00:27]} h4 {[%emt 0:00:22]} 38. Ra3 {[%emt 0:00:36]} Rc7 {[%emt 0:00:41]} 39. b3 {[%emt 0:01:02]} c3 {[%emt 0:00:24]} 40. d5 {[%emt 0:00:46]} g3 {[%emt 0:00:55]} 41. Nf3 {[%emt 0:17:22]} h3 {[%emt 0:15:51]} 42. Nd4 {[%emt 0:00:37]} b4 {[%emt 0:00:50]} 43. Ra6+ {[%emt 0:01:48]} Kh5 {[%emt 0:00:31]} 44. Ne6 {[%emt 0:00:38]} Re8 {[%emt 0:00:00]} 45. Nxc7 {[%emt 0:00:00]} Re2 {[%emt 0:00:00]} 46. d6 {[%emt 0:00:00]} Rd2 {[%emt 0:00:00]} 47. Ra5 {[%emt 0:01:59]} Kg4 {[%emt 0:00:00]} 48. Rd5 {[%emt 0:00:52]} Re2 {[%emt 0:00:00]} 49. d7 {[%emt 0:01:26]} Kf3 {[%emt 0:00:00]} 50. Rd3+ {[%emt 0:01:46]} Kxf4 {[%emt 0:00:24]} 51. d8=Q {[%emt 0:00:49]} Rg2+ {[%emt 0:01:17]} 52. Kf1 {[%emt 0:00:50]} Rf2+ {[%emt 0:00:33]} 53. Ke1 {[%emt 0:00:56]} h2 {[%emt 0:00:44]} 54. Qh4+ {[%emt 0:00:23]} Ke5 {[%emt 0:00:55]} 55. Qxg3+ {[%emt 0:00:16]} Ke4 {[%emt 0:00:39]} 56. Qe3# {[%emt 0:00:50]} 1-0

[Event "GER-ch Women Open 2019"]
[Site "Bodenmais"]
[Date "2019.07.29"]
[Round "3.6"]
[White "Peglau, Lorena"]
[Black "Pribylova, Ruzena"]
[Result "0-1"]
[ECO "A04"]
[WhiteElo "1108"]
[BlackElo "1867"]
[Annotator "NA"]
[PlyCount "34"]
[EventDate "2019.07.27"]
[EventType "swiss"]
[EventCountry "GER"]
[SourceTitle "playchess.com"]
[Source "ChessBase"]
[SourceQuality "1"]
[TimeControl "40/5400+30:900+30"]

1. Nf3 {[%emt 0:00:00]} c5 {[%emt 0:00:00]} 2. e3 {[%emt 0:00:15]} d5 {[%emt 0:00:10]} 3. d4 {[%emt 0:00:11]} e6 {[%emt 0:00:13]} 4. Bd2 {[%emt 0:00:25]} Nf6 {[%emt 0:00:21]} 5. c4 {[%emt 0:00:13]} Nc6 {[%emt 0:00:35]} 6. Nc3 {[%emt 0:00:13]} Be7 {[%emt 0:01:16]} 7. Be2 {[%emt 0:00:29]} O-O {[%emt 0:00:28]} 8. cxd5 {[%emt 0:00:14]} Nxd5 {[%emt 0:00:20]} 9. Nxd5 {[%emt 0:00:17]} Qxd5 {[%emt 0:00:18]} 10. O-O {[%emt 0:00:26]} cxd4 {[%emt 0:00:34]} 11. exd4 {[%emt 0:00:21]} Nxd4 {[%emt 0:00:27]} 12. Nxd4 {[%emt 0:00:21]} Qxd4 {[%emt 0:00:02]} 13. Qc2 {[%emt 0:00:26]} Bd7 {[%emt 0:08:39]} 14. Bc3 {[%emt 0:00:41]} Qc5 {[%emt 0:02:13]} 15. Rfd1 {[%emt 0:00:35]} Bc6 {[%emt 0:00:50]} 16. Rac1 {[%emt 0:00:33]} Qg5 {[%emt 0:02:29]} 17. Bd2 {[%emt 0:00:26]} Qxg2# {[%emt 0:00:20]} 0-1

[Event "GER-ch Women Open 2019"]
[Site "Bodenmais"]
[Date "2019.07.30"]
[Round "4.1"]
[White "Von Herman, Brigitte"]
[Black "Sewald, Kathrin"]
[Result "1-0"]
[ECO "C54"]
[WhiteElo "2062"]
[BlackElo "2016"]
[Annotator "NA"]
[PlyCount "75"]
[EventDate "2019.07.27"]
[EventType "swiss"]
[EventCountry "GER"]
[SourceTitle "playchess.com"]
[Source "ChessBase"]
[SourceQuality "1"]
[TimeControl "40/5400+30:900+30"]

1. e4 {[%emt 0:00:00]} e5 {[%emt 0:00:00]} 2. Nf3 {[%emt 0:00:00]} Nc6 {[%emt 0:00:00]} 3. Bc4 {[%emt 0:00:00]} Bc5 {[%emt 0:00:00]} 4. c3 {[%emt 0:00:01]} Nf6 {[%emt 0:00:00]} 5. d3 {[%emt 0:00:06]} d6 {[%emt 0:00:32]} 6. Bb3 {[%emt 0:00:23]} a6 {[%emt 0:03:15]} 7. Nbd2 {[%emt 0:00:27]} Ba7 {[%emt 0:01:03]} 8. h3 {[%emt 0:00:30]} h6 {[%emt 0:02:49]} 9. Nf1 {[%emt 0:02:27]} Qe7 {[%emt 0:01:07]} 10. Ne3 {[%emt 0:03:43]} g6 {[%emt 0:03:45]} 11. Qe2 {[%emt 0:08:20]} Bd7 {[%emt 0:04:56]} 12. g4 {[%emt 0:13:01]} Na5 {[%emt 0:06:40]} 13. Bc2 {[%emt 0:03:04]} O-O-O {[%emt 0:01:43]} 14. b4 {[%emt 0:01:50]} Nc6 {[%emt 0:00:08]} 15. a4 {[%emt 0:00:50]} Nb8 {[%emt 0:04:19]} 16. Bd2 {[%emt 0:06:46]} c6 {[%emt 0:05:49]} 17. Nc4 {[%emt 0:05:41]} b5 {[%emt 0:00:53]} 18. axb5 {[%emt 0:02:26]} cxb5 {[%emt 0:00:07]} 19. Na5 {[%emt 0:02:39]} Nc6 {[%emt 0:06:30]} 20. Nxc6 {[%emt 0:06:13]} Bxc6 {[%emt 0:00:04]} 21. Rxa6 {[%emt 0:00:09]} Qb7 {[%emt 0:00:14]} 22. Ra3 {[%emt 0:03:29]} Bb8 {[%emt 0:00:59]} 23. c4 {[%emt 0:02:48]} bxc4 {[%emt 0:01:31]} 24. O-O {[%emt 0:04:33]} d5 {[%emt 0:06:42]} 25. dxc4 {[%emt 0:06:22]} d4 {[%emt 0:05:32]} 26. Re1 {[%emt 0:02:25]} Ne8 {[%emt 0:08:10]} 27. c5 {[%emt 0:02:07]} Bb5 {[%emt 0:03:20]} 28. Bd3 {[%emt 0:00:12]} Bxd3 {[%emt 0:00:53]} 29. Qxd3 {[%emt 0:00:11]} Kd7 {[%emt 0:01:18]} 30. b5 {[%emt 0:01:48]} Ke7 {[%emt 0:01:05]} 31. Ba5 {[%emt 0:01:39]} Bc7 {[%emt 0:01:13]} 32. Bb4 {[%emt 0:01:16]} Kf6 {[%emt 0:00:24]} 33. Rea1 {[%emt 0:01:45]} Rb8 {[%emt 0:03:35]} 34. b6 {[%emt 0:00:25]} Bd8 {[%emt 0:01:00]} 35. Ra7 {[%emt 0:00:42]} Qc6 {[%emt 0:01:30]} 36. Nxe5 {[%emt 0:00:45]} Kxe5 {[%emt 0:01:48]} 37. Qg3+ {[%emt 0:00:13]} Kf6 {[%emt 0:00:15]} 38. Qxb8 {[%emt 0:00:23]} 1-0

[Event "GER-ch Women Open 2019"]
[Site "Bodenmais"]
[Date "2019.07.30"]
[Round "4.2"]
[White "Ries, Jutta"]
[Black "Peglau, Sarah"]
[Result "1-0"]
[ECO "A03"]
[WhiteElo "1983"]
[BlackElo "1525"]
[Annotator "NA"]
[PlyCount "91"]
[EventDate "2019.07.27"]
[EventType "swiss"]
[EventCountry "GER"]
[SourceTitle "playchess.com"]
[Source "ChessBase"]
[SourceQuality "1"]
[TimeControl "40/5400+30:900+30"]

1. f4 {[%emt 0:00:00]} Nf6 {[%emt 0:00:00]} 2. Nf3 {[%emt 0:00:22]} d5 {[%emt 0:00:18]} 3. e3 {[%emt 0:00:45]} c5 {[%emt 0:01:25]} 4. b3 {[%emt 0:01:52]} Nc6 {[%emt 0:02:13]} 5. Bb5 {[%emt 0:01:05]} Bd7 {[%emt 0:01:49]} 6. O-O {[%emt 0:02:34]} g6 {[%emt 0:00:49]} 7. Bb2 {[%emt 0:01:36]} Bg7 {[%emt 0:00:10]} 8. Bxc6 {[%emt 0:03:07]} Bxc6 {[%emt 0:01:28]} 9. Ne5 {[%emt 0:00:37]} O-O {[%emt 0:00:47]} 10. Nxc6 {[%emt 0:00:58]} bxc6 {[%emt 0:00:02]} 11. Qe2 {[%emt 0:00:55]} Qb6 {[%emt 0:05:40]} 12. Nc3 {[%emt 0:04:02]} Ne4 {[%emt 0:15:04]} 13. Na4 {[%emt 0:06:20]} Qa5 {[%emt 0:00:47]} 14. Bxg7 {[%emt 0:01:09]} Kxg7 {[%emt 0:00:02]} 15. d3 {[%emt 0:19:09]} Nc3 {[%emt 0:04:53]} 16. Qe1 {[%emt 0:00:39]} d4 {[%emt 0:00:52]} 17. exd4 {[%emt 0:01:37]} cxd4 {[%emt 0:00:01]} 18. Nxc3 {[%emt 0:00:19]} Qxc3 {[%emt 0:00:34]} 19. Qxc3 {[%emt 0:00:10]} dxc3 {[%emt 0:00:02]} 20. Rfe1 {[%emt 0:00:17]} Kf6 {[%emt 0:01:10]} 21. Re4 {[%emt 0:00:23]} Rad8 {[%emt 0:01:07]} 22. Rae1 {[%emt 0:00:33]} Rfe8 {[%emt 0:02:36]} 23. Rc4 {[%emt 0:01:24]} Rd6 {[%emt 0:00:58]} 24. Re5 {[%emt 0:02:07]} Rc8 {[%emt 0:05:15]} 25. Kf2 {[%emt 0:07:52]} Re6 {[%emt 0:04:23]} 26. Ra5 {[%emt 0:03:01]} Rc7 {[%emt 0:00:25]} 27. Rxc3 {[%emt 0:01:51]} Rd7 {[%emt 0:09:27]} 28. Rc4 {[%emt 0:01:25]} Rd5 {[%emt 0:02:17]} 29. Rxa7 {[%emt 0:06:52]} Kf5 {[%emt 0:02:03]} 30. Ra6 {[%emt 0:05:00]} Rdd6 {[%emt 0:02:09]} 31. Ra5+ {[%emt 0:01:06]} Kf6 {[%emt 0:00:45]} 32. Rac5 {[%emt 0:00:08]} Kg7 {[%emt 0:03:50]} 33. a4 {[%emt 0:00:52]} h6 {[%emt 0:01:11]} 34. a5 {[%emt 0:04:25]} Rf6 {[%emt 0:00:18]} 35. a6 {[%emt 0:01:35]} g5 {[%emt 0:00:12]} 36. a7 {[%emt 0:00:52]} Rd8 {[%emt 0:00:07]} 37. Rxc6 {[%emt 0:00:28]} Ra8 {[%emt 0:00:33]} 38. Rxf6 {[%emt 0:00:19]} Kxf6 {[%emt 0:00:06]} 39. fxg5+ {[%emt 0:00:12]} hxg5 {[%emt 0:00:08]} 40. Ra4 {[%emt 0:01:54]} Ke6 {[%emt 0:00:09]} 41. b4 {[%emt 0:15:17]} Kd6 {[%emt 0:15:11]} 42. b5 {[%emt 0:00:42]} Kc5 {[%emt 0:00:06]} 43. c4 {[%emt 0:00:13]} Kb6 {[%emt 0:00:07]} 44. Ra6+ {[%emt 0:00:23]} Kc5 {[%emt 0:00:05]} 45. Rc6+ {[%emt 0:00:25]} Kd4 {[%emt 0:00:14]} 46. b6 {[%emt 0:00:11] Kd5} 1-0

[Event "GER-ch Women Open 2019"]
[Site "Bodenmais"]
[Date "2019.07.30"]
[Round "4.3"]
[White "Peglau, Dora"]
[Black "Navarro Ortega-Villaizan, Lucia"]
[Result "1-0"]
[ECO "D02"]
[WhiteElo "1300"]
[BlackElo "1113"]
[Annotator "NA"]
[PlyCount "77"]
[EventDate "2019.07.27"]
[EventType "swiss"]
[EventCountry "GER"]
[SourceTitle "playchess.com"]
[Source "ChessBase"]
[SourceQuality "1"]
[TimeControl "40/5400+30:900+30"]

1. d4 {[%emt 0:00:00]} d5 {[%emt 0:00:00]} 2. Nf3 {[%emt 0:00:00]} Nf6 {[%emt 0:01:33]} 3. Bf4 {[%emt 0:01:08]} Bf5 {[%emt 0:00:19]} 4. e3 {[%emt 0:00:08]} Nc6 {[%emt 0:00:27]} 5. c4 {[%emt 0:00:14]} e6 {[%emt 0:01:03]} 6. Nbd2 {[%emt 0:00:55]} Bd6 {[%emt 0:04:07]} 7. Bg3 {[%emt 0:00:15]} Nb4 {[%emt 0:06:24]} 8. Rc1 {[%emt 0:15:53]} Bd3 {[%emt 0:23:27]} 9. Be2 {[%emt 0:01:31]} Ne4 {[%emt 0:01:44]} 10. a3 {[%emt 0:08:30]} Bxe2 {[%emt 0:15:11]} 11. Qxe2 {[%emt 0:01:09]} Na6 {[%emt 0:02:03]} 12. O-O {[%emt 0:02:37]} O-O {[%emt 0:02:52]} 13. b4 {[%emt 0:03:28]} c6 {[%emt 0:03:26]} 14. c5 {[%emt 0:06:21]} Be7 {[%emt 0:00:59]} 15. Qd3 {[%emt 0:01:30]} Nxd2 {[%emt 0:04:26]} 16. Qxd2 {[%emt 0:00:41]} b6 {[%emt 0:00:47]} 17. cxb6 {[%emt 0:01:09]} Qxb6 {[%emt 0:00:30]} 18. Ne5 {[%emt 0:01:06]} Rfc8 {[%emt 0:01:51]} 19. Rc3 {[%emt 0:04:21]} f6 {[%emt 0:01:19]} 20. Nd3 {[%emt 0:01:18]} Nb8 {[%emt 0:01:45]} 21. Rfc1 {[%emt 0:01:53]} a5 {[%emt 0:01:52]} 22. Qb2 {[%emt 0:11:34]} axb4 {[%emt 0:02:50]} 23. axb4 {[%emt 0:00:11]} Qb5 {[%emt 0:03:42]} 24. Nc5 {[%emt 0:08:59]} Na6 {[%emt 0:02:37]} 25. Nxe6 {[%emt 0:01:35]} Qxb4 {[%emt 0:02:03]} 26. Qc2 {[%emt 0:01:10]} Nb8 {[%emt 0:01:21]} 27. Bxb8 {[%emt 0:00:25]} Raxb8 {[%emt 0:01:37]} 28. Rxc6 {[%emt 0:00:21]} Rxc6 {[%emt 0:00:34]} 29. Qxc6 {[%emt 0:00:14]} Kf7 {[%emt 0:00:51]} 30. Qxd5 {[%emt 0:00:34]} Ke8 {[%emt 0:02:40]} 31. Nxg7+ {[%emt 0:00:43]} Kf8 {[%emt 0:00:45]} 32. Ne6+ {[%emt 0:00:04]} Ke8 {[%emt 0:00:49]} 33. h4 {[%emt 0:04:23]} Bd6 {[%emt 0:00:36]} 34. Qe4 {[%emt 0:04:49]} Kd7 {[%emt 0:00:59]} 35. Nc5+ {[%emt 0:01:35]} Kd8 {[%emt 0:01:44]} 36. Qe6 {[%emt 0:01:03]} Bxc5 {[%emt 0:02:12]} 37. Rxc5 {[%emt 0:00:46]} Qb7 {[%emt 0:02:55]} 38. Rd5+ {[%emt 0:00:12]} Kc7 {[%emt 0:00:43]} 39. Rd7+ {[%emt 0:00:06]} 1-0

[Event "GER-ch Women Open 2019"]
[Site "Bodenmais"]
[Date "2019.07.30"]
[Round "4.4"]
[White "Pribylova, Ruzena"]
[Black "Just, Anita"]
[Result "1/2-1/2"]
[ECO "C00"]
[WhiteElo "1867"]
[BlackElo "1875"]
[Annotator "NA"]
[PlyCount "116"]
[EventDate "2019.07.27"]
[EventType "swiss"]
[EventCountry "GER"]
[SourceTitle "playchess.com"]
[Source "ChessBase"]
[SourceQuality "1"]
[TimeControl "40/5400+30:900+30"]

1. e4 {[%emt 0:00:00]} e6 {[%emt 0:00:00]} 2. b3 {[%emt 0:00:00]} d5 {[%emt 0:01:05]} 3. Bb2 {[%emt 0:00:00]} dxe4 {[%emt 0:04:31]} 4. Nc3 {[%emt 0:00:13]} Nf6 {[%emt 0:00:36]} 5. Nge2 {[%emt 0:00:21]} Bc5 {[%emt 0:24:59]} 6. Ng3 {[%emt 0:00:29]} O-O {[%emt 0:04:58]} 7. Ngxe4 {[%emt 0:00:42]} Bd4 {[%emt 0:01:02]} 8. Nxf6+ {[%emt 0:03:36]} Qxf6 {[%emt 0:03:19]} 9. Qe2 {[%emt 0:00:29]} Nc6 {[%emt 0:03:45]} 10. f3 {[%emt 0:05:13]} Nb4 {[%emt 0:07:00]} 11. Kd1 {[%emt 0:03:11]} Qg6 {[%emt 0:07:18]} 12. Qe4 {[%emt 0:01:29]} e5 {[%emt 0:04:00]} 13. Qxg6 {[%emt 0:01:19]} hxg6 {[%emt 0:00:05]} 14. a3 {[%emt 0:01:16]} Nc6 {[%emt 0:01:54]} 15. Bc4 {[%emt 0:02:06]} Bf5 {[%emt 0:02:10]} 16. Kc1 {[%emt 0:02:37]} Rad8 {[%emt 0:01:07]} 17. Re1 {[%emt 0:13:58]} a6 {[%emt 0:02:47]} 18. b4 {[%emt 0:00:29]} b5 {[%emt 0:02:28]} 19. Bb3 {[%emt 0:00:25]} Rd6 {[%emt 0:01:23]} 20. d3 {[%emt 0:01:20]} Rfd8 {[%emt 0:02:29]} 21. Ne4 {[%emt 0:05:40]} Bxe4 {[%emt 0:01:53]} 22. fxe4 {[%emt 0:01:05]} Rf6 {[%emt 0:00:56]} 23. c3 {[%emt 0:03:58]} Bf2 {[%emt 0:01:18]} 24. Re2 {[%emt 0:09:02]} Rxd3 {[%emt 0:01:29]} 25. Bd5 {[%emt 0:05:38]} Re3 {[%emt 0:07:41]} 26. Kd2 {[%emt 0:03:09]} Rxe2+ {[%emt 0:00:11]} 27. Kxe2 {[%emt 0:00:08]} Ne7 {[%emt 0:00:45]} 28. Bb3 {[%emt 0:02:47]} Bb6 {[%emt 0:00:49]} 29. Rf1 {[%emt 0:00:12]} Rxf1 {[%emt 0:01:16]} 30. Kxf1 {[%emt 0:00:03]} Kf8 {[%emt 0:02:38]} 31. c4 {[%emt 0:00:27]} f6 {[%emt 0:02:03]} 32. c5 {[%emt 0:03:00]} Ba7 {[%emt 0:00:04]} 33. Ke2 {[%emt 0:00:42]} c6 {[%emt 0:01:48]} 34. Be6 {[%emt 0:02:02]} Ke8 {[%emt 0:01:26]} 35. g4 {[%emt 0:01:02]} a5 {[%emt 0:02:07]} 36. h4 {[%emt 0:02:02]} axb4 {[%emt 0:01:12]} 37. axb4 {[%emt 0:00:02]} Bb8 {[%emt 0:00:10]} 38. Bc3 {[%emt 0:04:28]} Bc7 {[%emt 0:00:38]} 39. Kf3 {[%emt 0:01:51]} Bd8 {[%emt 0:00:27]} 40. Bb2 {[%emt 0:01:29]} Bc7 {[%emt 0:00:04]} 41. Bc3 {[%emt 0:15:25]} Kf8 {[%emt 0:16:26]} 42. Bb2 {[%emt 0:03:09]} Ng8 {[%emt 0:00:00]} 43. Bd7 {[%emt 0:00:00]} Ne7 {[%emt 0:00:00]} 44. Be6 {[%emt 0:00:00]} Ke8 {[%emt 0:00:00]} 45. Bc3 {[%emt 0:00:00]} Kd8 {[%emt 0:00:00]} 46. Bb2 {[%emt 0:00:00]} Nc8 {[%emt 0:00:00]} 47. Bf7 {[%emt 0:00:00]} g5 {[%emt 0:00:00]} 48. hxg5 {[%emt 0:00:00]} fxg5 {[%emt 0:00:00]} 49. Be6 {[%emt 0:00:00]} Ne7 {[%emt 0:00:00]} 50. Bc1 {[%emt 0:00:00]} Ng6 {[%emt 0:00:00]} 51. Bxg5+ {[%emt 0:00:00]} Ke8 {[%emt 0:00:02]} 52. Bf5 {[%emt 0:00:00]} Nf8 {[%emt 0:00:46]} 53. Bh4 {[%emt 0:02:40]} g6 {[%emt 0:02:07]} 54. Bc8 {[%emt 0:00:26]} Bd8 {[%emt 0:01:34]} 55. g5 {[%emt 0:00:37]} Bc7 {[%emt 0:03:00]} 56. Bh3 {[%emt 0:00:27]} Ke7 {[%emt 0:00:16]} 57. Be1 {[%emt 0:00:28]} Ne6 {[%emt 0:00:36]} 58. Bxe6 {[%emt 0:00:20]} Kxe6 {[%emt 0:00:06]} 1/2-1/2

[Event "GER-ch Women Open 2019"]
[Site "Bodenmais"]
[Date "2019.07.30"]
[Round "4.5"]
[White "Steckmann, Kerstin"]
[Black "Weinmann, Helene"]
[Result "1-0"]
[ECO "D70"]
[WhiteElo "1653"]
[BlackElo "1520"]
[Annotator "NA"]
[PlyCount "91"]
[EventDate "2019.07.27"]
[EventType "swiss"]
[EventCountry "GER"]
[SourceTitle "playchess.com"]
[Source "ChessBase"]
[SourceQuality "1"]
[TimeControl "40/5400+30:900+30"]

1. d4 {[%emt 0:00:00]} Nf6 {[%emt 0:00:00]} 2. c4 {[%emt 0:00:00]} g6 {[%emt 0:00:07]} 3. Nf3 {[%emt 0:00:00]} Bg7 {[%emt 0:00:14]} 4. Nc3 {[%emt 0:00:27]} O-O {[%emt 0:00:21]} 5. e4 {[%emt 0:06:12]} d6 {[%emt 0:00:51]} 6. Bf4 {[%emt 0:04:58]} Nbd7 {[%emt 0:00:53]} 7. Be2 {[%emt 0:04:18]} c5 {[%emt 0:01:00]} 8. d5 {[%emt 0:00:52]} Nb6 {[%emt 0:03:49]} 9. O-O {[%emt 0:01:26]} Nh5 {[%emt 0:01:28]} 10. Be3 {[%emt 0:04:16]} e5 {[%emt 0:01:41]} 11. Nd2 {[%emt 0:01:10]} Nf6 {[%emt 0:00:21]} 12. f4 {[%emt 0:02:55]} exf4 {[%emt 0:00:36]} 13. Bxf4 {[%emt 0:00:28]} Ne8 {[%emt 0:00:49]} 14. Qe1 {[%emt 0:04:34]} f5 {[%emt 0:06:54]} 15. Qg3 {[%emt 0:04:52]} a6 {[%emt 0:02:22]} 16. Rae1 {[%emt 0:04:22]} Qc7 {[%emt 0:03:41]} 17. Bd3 {[%emt 0:05:24]} Bd4+ {[%emt 0:06:28]} 18. Kh1 {[%emt 0:00:02]} Be5 {[%emt 0:03:14]} 19. Bxe5 {[%emt 0:04:35]} dxe5 {[%emt 0:00:21]} 20. exf5 {[%emt 0:00:14]} e4 {[%emt 0:04:14]} 21. Qxc7 {[%emt 0:04:13]} Nxc7 {[%emt 0:00:22]} 22. Ncxe4 {[%emt 0:02:16]} Bxf5 {[%emt 0:00:24]} 23. Nxc5 {[%emt 0:00:02]} Bxd3 {[%emt 0:00:24]} 24. Nxd3 {[%emt 0:00:02]} Rxf1+ {[%emt 0:02:07]} 25. Rxf1 {[%emt 0:00:02]} Kg7 {[%emt 0:00:52]} 26. Nc5 {[%emt 0:01:10]} Rb8 {[%emt 0:00:40]} 27. b3 {[%emt 0:00:45]} Nc8 {[%emt 0:01:21]} 28. Nd7 {[%emt 0:05:20]} Ra8 {[%emt 0:01:07]} 29. Ne5 {[%emt 0:01:31]} Nd6 {[%emt 0:02:00]} 30. c5 {[%emt 0:03:50]} Nf5 {[%emt 0:04:21]} 31. g4 {[%emt 0:01:03]} Nxd5 {[%emt 0:02:41]} 32. gxf5 {[%emt 0:00:04]} Ne3 {[%emt 0:00:45]} 33. f6+ {[%emt 0:00:12]} Kf8 {[%emt 0:01:52]} 34. Rf3 {[%emt 0:00:27]} Nf5 {[%emt 0:08:04]} 35. Ne4 {[%emt 0:00:01]} Rd8 {[%emt 0:01:53]} 36. Ng5 {[%emt 0:01:34]} Rd1+ {[%emt 0:00:23]} 37. Kg2 {[%emt 0:00:01]} Nh4+ {[%emt 0:00:46]} 38. Kg3 {[%emt 0:01:08]} Nxf3 {[%emt 0:00:36]} 39. Nxh7+ {[%emt 0:02:57]} Kg8 {[%emt 0:03:30]} 40. f7+ {[%emt 0:00:12]} Kxh7 {[%emt 0:00:48]} 41. f8=Q {[%emt 0:15:02]} Nxe5 {[%emt 0:15:54]} 42. Qe7+ {[%emt 0:00:14]} Kh6 {[%emt 0:01:35]} 43. Qxe5 {[%emt 0:00:14]} Rg1+ {[%emt 0:00:59]} 44. Kh3 {[%emt 0:02:32]} Rd1 {[%emt 0:00:46]} 45. Qh8+ {[%emt 0:00:24]} Kg5 {[%emt 0:00:36]} 46. Qh4+ {[%emt 0:00:03] Rb1} 1-0